bitfinex-derivatives/quotes_ETHF0:USTF0_20250817
["timestamp","ask_amount","ask_price","bid_price","bid_amount"]
[1755415739254,4.7034,4467.1,4467.0,1.4479]
[1755415740753,4.2046,4467.1,4467.0,1.4479]
[1755415740958,4.0359,4467.1,4467.0,1.4479]
[1755415741348,3.8123,4467.8,4467.7,0.3352]
[1755415741552,5.34649569,4467.8,4467.7,1.4479]
[1755415742258,5.34649569,4467.8,4466.8,0.0223]
[1755415742259,5.34649569,4467.8,4466.8,0.2594]
[1755415742456,0.6045,4467.0,4466.9,1.1885]
[1755415742653,1.4956,4467.0,4466.9,1.4479]
[1755415743654,1.4956,4467.0,4466.5,3.65525]
[1755415743861,0.6045,4466.7,4466.6,1.4479]
[1755415744054,1.4956,4466.7,4466.6,1.4479]
[1755415752462,0.6045,4466.7,4466.6,1.0805]
[1755415752765,1.4956,4466.7,4466.6,1.4479]
[1755415753961,1.4956,4467.2,4467.1,0.5736]
[1755415754167,2.13850611,4467.2,4467.1,1.4479]
[1755415755980,2.13862678,4467.2,4467.1,1.4479]
[1755415759685,2.13862678,4467.2,4467.1,0.8421]
[1755415759885,0.5863,4466.3,4466.2,1.1068]
[1755415760082,1.4682,4466.3,4466.2,1.4762]
[1755415762286,3.2078,4466.8,4466.7,0.5985]
[1755415762490,4.4211,4466.8,4466.7,1.4762]
[1755415762784,4.676,4466.8,4466.7,1.4762]
[1755415772096,5.31940156,4466.8,4466.7,1.4762]
[1755415779504,3.2078,4467.3,4467.2,0.5985]
[1755415779700,3.85250992,4467.3,4467.2,1.4762]
[1755415780089,3.2078,4467.3,4467.2,1.4762]
[1755415780694,3.2078,4467.8,4467.2,0.5985]
[1755415780895,1.0522,4467.4,4467.3,1.4762]
[1755415781093,1.45866813,4467.4,4467.3,1.4762]
[1755415781599,1.69656813,4467.4,4467.3,1.4762]
[1755415782195,1.2133,4467.4,4467.3,1.4762]
[1755415783005,1.4682,4467.4,4467.3,1.4762]
[1755415786196,0.8143,4467.4,4467.3,1.4762]
[1755415786501,4.26,4467.8,4467.7,1.4762]
[1755415786702,4.90372374,4467.8,4467.7,1.4762]
[1755415786897,5.06482374,4467.8,4467.7,1.4762]
[1755415787798,5.30432374,4467.8,4467.7,1.4762]
[1755415791397,5.30432374,4467.8,4467.7,0.2583]
[1755415791602,0.5745,4467.1,4467.0,3.7966]
[1755415791805,1.4384,4467.1,4467.0,3.7966]
[1755415792304,1.1989,4467.1,4467.0,4.6481]
[1755415792601,0.7968,4467.1,4467.0,4.6481]
[1755415794703,0.4791,4467.4,4467.0,4.6481]
[1755415794901,0.3848,4467.3,4467.2,0.5888]
[1755415795206,1.0364,4467.3,4467.2,1.4403]
[1755415795907,1.1989,4467.3,4467.2,1.4403]
[1755415796106,1.4384,4467.3,4467.2,1.4403]
[1755415800709,1.1989,4467.3,4467.2,1.4403]
[1755415801309,0.9593,4467.3,4467.2,1.4403]
[1755415801510,1.4384,4467.3,4467.2,1.4403]
[1755415804008,1.1989,4467.3,4467.2,1.4403]
[1755415804812,1.4384,4467.3,4467.2,1.4403]
[1755415807318,0.9593,4467.3,4467.0,3.2078]
[1755415807617,1.4384,4467.3,4467.2,1.4403]
[1755415808113,3.2078,4467.8,4467.2,1.4403]
[1755415808319,1.84311303,4467.7,4467.6,0.5888]
[1755415808622,2.08261303,4467.7,4467.6,1.4403]
[1755415809719,0.64421303,4467.7,4467.6,1.4403]
[1755415809919,0.3848,4468.2,4468.1,0.5888]
[1755415810114,0.3848,4468.2,4468.1,1.4403]
[1755415810115,0.2389,4468.2,4468.1,1.4403]
[1755415810323,0.3848,4468.4,4468.1,1.4403]
[1755415810624,0.6244,4468.5,4468.4,1.4403]
[1755415810823,0.81509685,4468.5,4468.4,1.4403]
[1755415811122,2.03375093,4468.5,4468.4,1.4403]
[1755415811325,1.62909685,4468.5,4468.4,1.4403]
[1755415811725,2.27292661,4468.5,4468.4,1.4403]
[1755415812229,1.4384,4468.5,4468.4,1.4403]
[1755415813330,0.412,4468.5,4468.4,1.4403]
[1755415813726,1.0364,4468.5,4468.4,1.4403]
[1755415813927,1.4384,4468.5,4468.4,1.4403]
[1755415816726,1.1989,4468.5,4468.4,1.4403]
[1755415817523,1.4596,4468.5,4468.4,1.4403]
[1755415822438,1.1989,4468.5,4468.4,1.4403]
[1755415822737,0.7968,4468.5,4468.4,1.4403]
[1755415823936,1.4951,4468.5,4468.4,1.4403]
[1755415827634,1.4963,4468.5,4468.4,1.5032]
[1755415828338,0.379,4468.4,4467.7,0.44733]
[1755415828636,0.5929,4468.2,4468.1,1.4863]
[1755415828943,1.4963,4468.2,4468.1,1.4863]
[1755415829536,1.2356,4468.2,4468.1,1.4863]
[1755415829938,0.798,4468.2,4468.1,1.4863]
[1755415830741,0.379,4468.4,4468.1,1.4863]
[1755415830938,0.379,4468.4,4468.1,0.5892]
[1755415831136,1.0617,4468.4,4468.3,1.4863]
[1755415832538,1.2356,4468.4,4468.3,1.4863]
[1755415833441,0.798,4468.4,4468.3,1.4863]
[1755415834647,1.0617,4468.4,4468.3,1.4863]
[1755415834839,1.2356,4468.4,4468.3,1.4863]
[1755415835034,1.4963,4468.4,4468.3,1.4863]
[1755415835636,3.6268,4468.9,4468.8,1.4863]
[1755415835838,4.2695,4468.9,4468.8,1.4863]
[1755415836642,4.4434,4468.9,4468.8,1.4863]
[1755415836843,4.7041,4468.9,4468.8,1.4863]
[1755415839043,5.34724749,4468.9,4468.8,1.4863]
[1755415839249,5.53860811,4468.9,4468.8,1.4863]
[1755415839644,5.34724749,4468.9,4468.8,1.4863]
[1755415839846,5.53861645,4468.9,4468.8,1.4863]
[1755415840245,5.53860283,4468.9,4468.8,1.4863]
[1755415841044,4.89545534,4468.9,4468.8,1.4863]
[1755415842850,4.89542359,4468.9,4468.8,1.4863]
[1755415843749,4.63472359,4468.9,4468.8,1.4863]
[1755415843943,4.4434,4468.9,4468.8,1.4863]
[1755415844946,4.7041,4468.9,4468.8,1.4863]
[1755415849255,3.2078,4468.9,4468.8,1.4863]
[1755415849548,0.3697,4469.1,4468.9,0.8679]
[1755415849750,0.3697,4469.1,4469.0,1.4472]
[1755415850148,0.6259,4469.1,4469.0,1.4472]
[1755415850360,1.0363,4469.1,4469.0,1.4472]
[1755415851052,1.2016,4469.1,4469.0,1.4472]
[1755415851258,1.452,4469.1,4469.0,1.4472]
[1755415852957,1.2016,4469.1,4469.0,1.4472]
[1755415853758,1.452,4469.1,4469.0,1.4472]
[1755415855954,3.2078,4469.6,4469.0,1.4472]
[1755415855955,0.8719,4469.5,4469.1,0.8679]
[1755415856158,1.2016,4469.2,4469.1,1.4472]
[1755415856358,1.452,4469.2,4469.1,1.4472]
[1755415860463,0.392,4469.1,4468.6,3.2078]
[1755415860671,1.452,4468.0,4467.9,3.2078]
[1755415860870,0.5801,4468.0,4467.3,35.60779995]
[1755415861070,1.452,4467.9,4467.8,0.5793]
[1755415861367,1.452,4467.9,4467.8,1.4472]
[1755415863474,0.2562,4468.3,4468.2,0.2614]
[1755415863776,0.8305,4468.3,4468.2,1.4472]
[1755415864077,1.0823,4468.3,4468.2,1.4472]
[1755415864274,1.452,4468.3,4468.2,1.4472]
[1755415866478,0.5801,4468.3,4468.2,1.4472]
[1755415866677,1.2016,4468.3,4468.2,1.4472]
[1755415866980,1.452,4468.3,4468.2,1.4472]
[1755415872977,0.5801,4467.9,4467.8,0.8259]
[1755415873184,1.452,4467.9,4467.8,0.8259]
[1755415873383,1.452,4467.9,4467.8,1.1858]
[1755415873785,0.7912,4467.8,4467.7,0.1586]
[1755415873986,1.452,4467.8,4467.7,0.6666]
[1755415874179,1.452,4467.8,4467.7,1.0265]
[1755415874379,1.452,4467.8,4467.7,1.1858]
[1755415875876,1.452,4467.8,4467.7,0.1586]
[1755415876081,1.452,4467.4,4467.3,4.147]
[1755415876282,1.452,4467.4,4466.9,0.3599]
[1755415876483,3.2078,4468.0,4466.8,4.147]
[1755415876484,0.9498,4466.9,4466.8,4.147]
[1755415876680,1.2016,4466.9,4466.8,4.655]
[1755415878978,1.043,4466.9,4466.8,4.655]
[1755415879185,1.4884,4466.9,4466.8,4.4218]
[1755415879390,1.4884,4466.9,4466.8,4.6837]
[1755415883383,0.3911,4467.9,4466.8,4.6837]
[1755415883585,0.5059,4467.9,4466.9,0.5252]
[1755415883885,1.0542,4467.2,4467.1,1.4786]
[1755415884287,1.228,4467.2,4467.1,1.4786]
[1755415884484,1.4723,4467.2,4467.1,1.4786]
[1755415891294,1.4723,4467.5,4467.4,0.5826]
[1755415891599,1.4723,4467.5,4467.4,1.4786]
[1755415895597,1.4723,4467.5,4467.4,0.4272]
[1755415895797,1.4723,4467.5,4467.4,0.2633]
[1755415896097,4.6801,4467.5,4467.4,0.2633]
[1755415898298,4.6801,4467.5,4467.4,0.5252]
[1755415898500,4.6801,4467.5,4467.4,0.6891]
[1755415898700,4.6801,4467.5,4467.4,1.4786]
[1755415899595,4.4358,4467.5,4467.4,1.4786]
[1755415899895,4.6801,4467.5,4467.4,1.4786]
[1755415900996,4.4358,4467.5,4467.4,1.4786]
[1755415901997,4.6801,4467.5,4467.4,1.4786]
[1755415902500,4.87382556,4467.5,4467.4,1.4786]
[1755415903197,4.87382556,4467.5,4466.8,23.4998]
[1755415903198,4.48274683,4467.5,4466.8,23.4998]
[1755415903391,0.1614,4466.9,4466.8,0.3364]
[1755415903596,0.8369,4466.9,4466.8,1.2324]
[1755415903993,0.8369,4466.9,4466.8,1.4786]
[1755415904194,1.4723,4466.9,4466.8,1.4786]
[1755415905001,1.4723,4466.9,4466.8,0.3364]
[1755415905195,1.4723,4466.9,4466.8,0.5997]
[1755415905390,1.4723,4466.9,4466.8,0.8616]
[1755415905998,1.4723,4466.9,4466.8,1.2324]
[1755415909598,1.4723,4466.9,4466.3,3.7093]
[1755415909799,0.5883,4466.4,4466.3,4.6711]
[1755415909999,1.2187,4466.4,4466.3,4.6711]
[1755415910900,3.2078,4467.5,4466.3,3.2078]
[1755415911100,1.4666,4466.4,4466.3,4.2898]
[1755415911302,1.4666,4466.4,4466.3,4.6711]
[1755415912598,1.4666,4466.4,4466.3,4.2898]
[1755415912804,0.5883,4466.2,4466.1,0.60225792]
[1755415912995,1.4666,4466.2,4466.1,0.60225792]
[1755415913199,1.4666,4466.2,4466.1,0.10075792]
[1755415913806,1.4666,4466.2,4466.1,0.77035792]
[1755415914104,1.4666,4466.2,4466.1,1.15165792]
[1755415914304,1.4666,4466.2,4466.1,0.10075792]
[1755415916699,4.69885614,4466.2,4465.3,0.2578]
[1755415916900,0.417,4465.3,4465.2,0.2578]
[1755415917100,1.4666,4465.3,4465.2,1.0509]
[1755415917309,1.4666,4465.3,4465.2,1.4633]
[1755415917507,3.2078,4465.8,4465.2,0.5805]
[1755415917712,3.2078,4465.8,4465.7,0.5805]
[1755415917906,4.2552,4465.8,4465.7,1.4633]
[1755415918111,4.4265,4465.8,4465.7,1.4633]
[1755415918308,4.6744,4465.8,4465.7,1.4633]
[1755415920506,3.2078,4465.8,4465.7,1.4633]
[1755415920712,4.6744,4466.5,4466.4,1.4633]
[1755415920914,5.31629996,4466.5,4466.4,1.4633]
[1755415921107,3.2078,4466.5,4466.4,1.4633]
[1755415921308,0.3787,4466.8,4466.4,0.5805]
[1755415921509,3.5583,4467.2,4467.1,1.4633]
[1755415921808,4.96792481,4467.2,4467.1,1.4633]
[1755415922409,4.96792481,4467.2,4466.3,0.5015]
[1755415922605,1.4666,4466.4,4466.0,0.3813]
[1755415922808,0.5883,4466.2,4466.1,1.4633]
[1755415923010,1.3001,4466.1,4466.0,0.5805]
[1755415923211,1.4666,4466.1,4466.0,1.4633]
[1755415923411,1.4666,4466.1,4465.3,20.293]
[1755415923412,1.1102,4466.1,4465.2,3.4656]
[1755415923612,1.4666,4465.4,4465.3,1.4633]
[1755415924306,1.4666,4465.4,4465.3,0.665]
[1755415924511,0.5883,4464.8,4464.7,1.082]
[1755415924709,1.4666,4464.8,4464.7,1.4633]
[1755415925014,1.2187,4464.8,4464.7,1.4633]
[1755415925718,1.4666,4464.8,4464.7,1.4633]
[1755415925908,3.2078,4465.2,4464.7,1.4633]
[1755415926211,1.2187,4465.1,4465.0,1.4633]
[1755415926413,1.4666,4465.1,4465.0,1.4633]
[1755415926613,1.4666,4465.1,4465.0,0.5894]
[1755415926814,1.4666,4465.1,4464.7,0.625]
[1755415927014,0.5883,4464.9,4464.8,0.2578]
[1755415927214,1.4666,4464.9,4464.8,0.4259]
[1755415927415,1.4666,4464.9,4464.8,0.6696]
[1755415927610,1.4666,4464.9,4464.8,0.8331]
[1755415927805,1.4666,4464.9,4464.8,1.4633]
[1755415929415,0.5883,4464.9,4464.8,1.4633]
[1755415930515,0.3787,4465.1,4464.8,1.4633]
[1755415930710,1.2187,4465.1,4465.0,0.5805]
[1755415930916,1.4666,4465.1,4465.0,1.4633]
[1755415939416,1.0789,4465.1,4465.0,1.1072]
[1755415939622,1.4486,4465.1,4465.0,1.4855]
[1755415947838,1.60169812,4466.8,4465.0,1.4855]
[1755415947839,4.4146,4465.7,4465.6,0.5945]
[1755415948039,5.30534606,4465.7,4465.6,1.4855]
[1755415948236,5.49847358,4465.7,4465.6,1.4855]
[1755415948536,4.85512752,4465.7,4465.6,1.4855]
[1755415948728,5.3053798,4465.7,4465.6,1.4855]
[1755415948934,5.49851461,4465.7,4465.6,1.4855]
[1755415949130,4.63821461,4465.7,4464.8,0.891]
[1755415949336,0.6171,4465.5,4464.9,0.6356]
[1755415949538,3.2078,4465.7,4464.9,0.6356]
[1755415949539,1.0387,4465.0,4464.9,1.4855]
[1755415950136,0.6254,4465.0,4464.9,1.4855]
[1755415950341,0.2557,4465.0,4464.9,1.4855]
[1755415953543,0.6254,4465.0,4464.9,1.4855]
[1755415954145,3.2078,4465.7,4464.7,3.2078]
[1755415954353,4.662,4465.2,4465.1,1.1072]
[1755415954542,5.50050626,4465.2,4465.1,1.4855]
[1755415954742,5.00990626,4465.2,4465.1,1.4855]
[1755415954942,5.25310626,4465.2,4465.1,1.4855]
[1755415955146,5.50050626,4465.2,4465.1,1.4855]
[1755415956143,5.50050626,4465.2,4464.2,3.2302]
[1755415956144,5.50050626,4465.2,4464.2,3.2078]
[1755415956448,2.29270626,4465.1,4465.0,1.1072]
[1755415957043,2.29270626,4465.1,4465.0,1.4855]
[1755415957244,2.29273476,4465.1,4465.0,1.4855]
[1755415957444,2.29274722,4465.1,4465.0,1.4855]
[1755415958047,2.29274903,4465.1,4465.0,1.4855]
[1755415964947,0.83854903,4465.1,4465.0,1.4855]
[1755415965450,1.26434903,4465.1,4465.0,1.4855]
[1755415965650,0.83854903,4465.1,4465.0,1.4855]
[1755415966451,0.64491455,4465.1,4465.0,1.4855]
[1755415966652,0.83864253,4465.1,4465.0,1.4855]
[1755415967156,2.09911455,4465.1,4465.0,1.4855]
[1755415967347,2.29284722,4465.1,4465.0,1.4855]
[1755415969048,0.261,4465.0,4464.5,0.359]
[1755415969254,1.2209,4464.3,4464.2,1.4544]
[1755415969452,1.4819,4464.3,4464.2,1.4544]
[1755415974366,1.4819,4464.3,4464.2,1.0414]
[1755415974564,1.4819,4464.3,4464.2,1.2063]
[1755415974860,1.4819,4464.3,4464.2,1.4544]
[1755415977353,0.8897,4464.2,4463.6,0.8667]
[1755415977564,1.4819,4463.6,4463.5,1.4544]
[1755415978165,1.67694018,4463.6,4463.5,1.4544]
[1755415978366,1.4819,4463.6,4463.5,1.4544]
[1755415979762,1.2209,4463.6,4462.7,3.2078]
[1755415979965,0.8131,4463.0,4462.9,1.4544]
[1755415980268,0.2406,4463.2,4462.9,1.4544]
[1755415980463,4.4287,4463.7,4463.6,1.4544]
[1755415980767,3.2078,4463.7,4463.6,1.4544]
[1755415980959,0.3881,4464.2,4462.5,0.17802504]
[1755415980960,3.2078,4464.3,4464.2,0.5877]
[1755415981159,0.3881,4464.2,4463.2,3.2078]
[1755415981359,0.817,4464.0,4463.9,0.4182]
[1755415981559,1.4819,4464.0,4463.9,1.4544]
[1755415981757,3.2078,4464.3,4464.2,0.5877]
[1755415981962,3.2078,4464.3,4464.2,1.4544]
[1755415982158,3.2078,4464.3,4464.2,1.4768]
[1755415982357,3.2078,4464.3,4464.2,1.4544]
[1755415983770,4.0209,4464.3,4464.2,1.4544]
[1755415983971,4.4287,4464.3,4464.2,1.4544]
[1755415984270,4.6897,4464.3,4464.2,1.4544]
[1755415985470,4.4287,4464.3,4464.2,1.4544]
[1755415985668,4.1881,4464.3,4464.2,1.4544]
[1755415986472,4.4287,4464.3,4464.2,1.4544]
[1755415987969,3.2078,4464.3,4464.2,1.4544]
[1755415991973,3.5959,4464.3,4464.2,1.4544]
[1755415993871,4.2615,4464.3,4464.2,1.4544]
[1755415994071,4.4287,4464.3,4464.2,1.4544]
[1755415996579,4.6897,4464.3,4464.2,1.4544]
[1755415997082,3.2078,4464.3,4464.2,1.4544]
[1755415998383,4.4035,4464.3,4464.2,1.4544]
[1755415998584,4.6523,4464.3,4464.2,1.4544]
[1755415998782,1.4445,4464.3,4464.2,1.4544]
[1755416002080,0.8619,4464.2,4464.0,0.2427]
[1755416002285,1.4445,4464.1,4464.0,0.2427]
[1755416002584,1.4445,4464.1,4464.0,0.6593]
[1755416002785,1.4445,4464.1,4464.0,1.2158]
[1755416002987,1.4445,4464.1,4464.0,1.4642]
[1755416003285,0.0224,4463.9,4463.0,0.2427]
[1755416003491,0.5826,4463.1,4463.0,0.4074]
[1755416003787,0.8314,4463.1,4463.0,1.4642]
[1755416004082,1.1983,4463.1,4463.0,0.831]
[1755416004292,1.4445,4463.1,4463.0,0.2427]
[1755416004588,0.495,4463.0,4462.8,0.5003]
[1755416004791,1.4445,4462.9,4462.8,1.0441]
[1755416005381,1.4445,4462.9,4462.8,1.2158]
[1755416005885,1.4445,4462.9,4462.8,1.4642]
[1755416006481,1.4445,4462.9,4462.8,1.0794]
[1755416007202,0.8619,4462.5,4460.7,0.2427]
[1755416007491,1.4445,4461.6,4461.5,0.5791]
[1755416007692,1.4445,4461.6,4461.5,1.4642]
[1755416009389,0.6131,4462.0,4461.6,0.8851]
[1755416009592,0.6131,4462.0,4461.9,0.5791]
[1755416009593,0.8288,4462.0,4461.9,0.5791]
[1755416009782,1.0776,4462.0,4461.9,1.4642]
[1755416009987,0.5826,4462.0,4461.3,0.8851]
[1755416010182,0.0224,4461.5,4459.4,3.2078]
[1755416010384,0.8314,4458.5,4458.4,3.2078]
[1755416010592,0.1728,4457.9,4457.8,0.2576]
[1755416010794,0.1657,4457.6,4457.5,0.5883]
[1755416011000,1.2686,4457.6,4457.4,3.2078]
[1755416011197,0.5826,4457.2,4457.1,0.8367]
[1755416011402,0.4216,4457.2,4457.1,1.2215]
[1755416011598,1.2462,4457.2,4457.1,0.8367]
[1755416012202,0.3385,4457.0,4456.9,0.5883]
[1755416012398,1.2462,4457.0,4456.9,1.4642]
[1755416013502,0.4216,4457.5,4457.4,1.2215]
[1755416013697,0.2488,4458.0,4457.4,3.7869]
[1755416013898,0.4216,4458.0,4457.9,1.4642]
[1755416014096,1.0884,4458.0,4457.9,1.4642]
[1755416014299,3.4566,4458.2,4458.1,0.5791]
[1755416014504,3.8932581,4458.2,4458.1,1.4642]
[1755416014704,4.7178581,4458.2,4457.7,0.6424]
[1755416014902,0.8314,4457.9,4457.8,0.2576]
[1755416015097,0.5058,4457.8,4457.1,0.6424]
[1755416015302,1.0884,4457.8,4457.7,0.5791]
[1755416015607,0.4216,4457.8,4457.7,1.4642]
[1755416015801,0.4216,4458.1,4458.0,1.4642]
[1755416016001,1.0884,4458.1,4458.0,1.4642]
[1755416016500,1.2462,4458.1,4458.0,1.4642]
[1755416017107,1.0884,4458.1,4458.0,1.4642]
[1755416017406,1.0884,4458.6,4458.5,1.4642]
[1755416017607,0.1728,4458.6,4458.5,1.4642]
[1755416018006,4.2962,4459.2,4459.1,1.4642]
[1755416018206,4.454,4459.2,4459.1,0.6777]
[1755416018409,4.454,4459.2,4458.6,0.2427]
[1755416018410,0.5826,4458.8,4458.7,0.8367]
[1755416018598,1.0884,4458.8,4458.7,1.4642]
[1755416019005,0.4216,4458.8,4458.7,1.4642]
[1755416021005,3.6226,4459.2,4458.7,1.4642]
[1755416021006,3.6226,4459.2,4458.7,0.5791]
[1755416021208,1.0884,4459.6,4459.5,1.4642]
[1755416021404,1.49873948,4459.6,4459.5,1.4642]
[1755416022207,1.34093948,4459.6,4459.5,1.4642]
[1755416022405,0.67413948,4459.6,4459.5,1.4642]
[1755416022609,0.4216,4459.6,4459.5,1.4642]
[1755416023413,1.34109692,4459.6,4459.5,1.4642]
[1755416023612,1.34109692,4459.6,4459.5,1.2215]
[1755416023913,1.34109692,4459.6,4459.5,1.4642]
[1755416024104,0.42549692,4459.6,4459.5,1.4642]
[1755416024304,0.1578,4460.1,4459.5,1.4642]
[1755416024305,3.3078,4460.2,4459.5,1.4642]
[1755416024504,4.3962,4460.2,4460.1,0.5791]
[1755416024812,5.46016183,4460.2,4460.1,0.8367]
[1755416025111,5.46016183,4460.2,4460.1,1.2215]
[1755416025708,5.30236183,4460.2,4460.1,1.4642]
[1755416026012,4.21396183,4460.2,4460.1,1.4642]
[1755416026408,4.38676183,4460.2,4460.1,1.4642]
[1755416026710,4.38705449,4460.2,4460.1,1.4642]
[1755416026906,4.79685449,4460.2,4460.1,0.1717]
[1755416027105,0.6657,4459.6,4459.5,0.8367]
[1755416027303,0.9227,4459.6,4459.5,1.4642]
[1755416027501,0.4216,4459.6,4459.5,1.4642]
[1755416027711,0.4234,4459.9,4459.8,0.5676]
[1755416027903,1.33129336,4459.9,4459.8,1.4404]
[1755416028306,0.90789336,4459.9,4459.8,1.4404]
[1755416028510,0.1,4460.2,4459.8,3.47052]
[1755416028711,0.1,4460.2,4460.1,4.6482]
[1755416029310,0.1,4460.2,4460.1,7.6482]
[1755416029815,0.1,4460.2,4460.1,8.1187]
[1755416030012,0.4234,4460.9,4460.8,0.5676]
[1755416030207,0.4234,4460.9,4460.8,1.4404]
[1755416030208,0.65583818,4460.9,4460.8,1.4404]
[1755416031318,0.65583818,4460.9,4460.8,4.6482]
[1755416035712,0.82363818,4460.9,4460.8,4.6482]
[1755416036009,1.50963818,4460.9,4460.8,4.3957]
[1755416036215,0.1678,4460.4,4460.3,0.8149]
[1755416036419,1.4956,4460.4,4460.3,1.0674]
[1755416036715,2.15143818,4460.4,4460.3,1.0674]
[1755416036918,1.25403818,4460.4,4460.1,3.2078]
[1755416037214,0.9927,4460.2,4460.1,0.5676]
[1755416037418,1.64853818,4460.2,4460.1,0.9406]
[1755416037620,1.89583818,4460.2,4460.1,1.1879]
[1755416037808,2.15143818,4460.2,4460.1,1.1879]
[1755416038519,2.14643057,4460.2,4460.1,1.4404]
[1755416039215,2.14643057,4460.2,4460.1,0.8149]
[1755416039615,0.1678,4459.6,4459.5,1.4404]
[1755416039816,0.4234,4459.6,4459.5,1.4404]
[1755416040018,1.07923818,4459.6,4459.5,1.4404]
[1755416040220,0.82363818,4459.6,4459.5,1.4404]
[1755416040420,0.65583818,4459.6,4459.5,1.4404]
[1755416040620,0.91583577,4459.6,4459.5,1.4404]
[1755416040922,0.25999759,4459.6,4459.5,1.4404]
[1755416041120,0.91973497,4459.6,4459.5,1.4404]
[1755416044419,0.91973497,4459.6,4459.5,1.4628]
[1755416045416,1.20366024,4460.3,4460.2,0.1597]
[1755416045622,4.80596024,4460.7,4460.2,21.5446]
[1755416045823,5.65146024,4460.7,4460.6,1.355]
[1755416046317,5.90706024,4460.7,4460.6,1.355]
[1755416047327,5.65976024,4460.7,4460.6,1.355]
[1755416047521,1.20366024,4460.7,4460.6,1.355]
[1755416047721,1.20366024,4460.8,4460.6,0.5676]
[1755416048026,2.45196024,4460.8,4460.7,1.355]
[1755416048221,2.69926024,4460.8,4460.7,1.355]
[1755416049723,1.4956,4460.8,4460.7,1.355]
[1755416050022,1.20366024,4461.0,4460.7,0.5676]
[1755416050324,0.4321,4461.0,4460.9,1.355]
[1755416050632,1.4956,4461.0,4460.9,1.355]
[1755416050927,2.69926024,4461.0,4460.9,1.355]
[1755416051323,1.4956,4461.0,4460.9,1.355]
[1755416052128,1.2483,4461.0,4460.9,1.355]
[1755416052629,1.4956,4461.0,4460.9,1.355]
[1755416053926,1.20366024,4461.2,4461.1,0.3255]
[1755416054126,0.2643,4461.3,4461.2,1.355]
[1755416054331,0.8266,4461.3,4461.2,1.355]
[1755416054630,1.0822,4461.3,4461.2,1.355]
[1755416055035,1.4956,4461.3,4461.2,1.355]
[1755416056926,1.4956,4461.3,4461.2,0.8253]
[1755416057133,1.4956,4461.3,4461.2,0.5728]
[1755416057531,2.38997615,4461.3,4461.2,0.5728]
[1755416058634,0.89437615,4461.3,4461.2,1.3533]
[1755416059237,1.31257615,4461.3,4461.2,1.3533]
[1755416060933,0.89437615,4461.3,4461.2,1.3757]
[1755416061132,1.2241,4462.2,4462.1,1.3805]
[1755416061542,1.4627,4462.2,4462.1,1.3805]
[1755416061728,3.2078,4462.4,4462.2,0.5116]
[1755416061729,3.706,4462.4,4462.2,0.5116]
[1755416061931,0.65683355,4462.3,4462.2,1.3805]
[1755416062135,1.4627,4462.6,4462.5,0.5815]
[1755416062442,1.4627,4462.6,4462.5,1.3805]
[1755416063138,3.2078,4462.9,4462.5,1.3805]
[1755416063342,3.7887,4462.9,4462.8,0.5815]
[1755416063536,3.7887,4462.9,4462.8,0.8421]
[1755416063841,4.1723,4462.9,4462.8,0.5913]
[1755416064050,4.6705,4462.9,4462.6,21.143]
[1755416064339,0.3365,4462.7,4462.6,21.3066]
[1755416064542,1.4627,4462.7,4462.6,21.3066]
[1755416064844,1.4627,4462.7,4462.6,22.2725]
[1755416066139,0.9645,4462.7,4462.6,22.2725]
[1755416066337,0.2386,4463.0,4462.6,21.4735]
[1755416066543,0.8195,4463.0,4462.9,1.0931]
[1755416066743,0.5809,4463.0,4462.9,1.3805]
[1755416067044,0.9645,4463.0,4462.9,1.3805]
[1755416067247,1.4627,4463.0,4462.9,1.3805]
[1755416068338,0.8818,4462.9,4462.6,20.892]
[1755416068543,1.4627,4462.7,4462.6,21.2227]
[1755416069141,1.4627,4462.7,4462.6,21.4833]
[1755416069445,1.4627,4462.7,4462.6,22.0217]
[1755416069640,1.4627,4462.7,4462.6,22.2725]
[1755416073247,1.4627,4462.7,4462.6,21.2227]
[1755416073448,1.4627,4462.7,4462.6,22.0215]
[1755416074143,0.5809,4462.2,4462.1,3.2078]
[1755416074355,1.4627,4462.2,4462.1,25.1753]
[1755416075044,0.9645,4461.7,4461.6,1.0931]
[1755416075249,1.4627,4461.7,4461.6,22.2283]
[1755416077347,3.2078,4462.8,4461.6,21.4295]
[1755416077653,1.4627,4462.0,4461.9,1.3803]
[1755416077949,1.4627,4462.0,4461.9,22.2133]
[1755416079444,1.4627,4462.0,4461.9,21.1637]
[1755416079950,1.4627,4462.0,4461.9,20.833]
[1755416080337,0.2596,4461.9,4461.3,3.2078]
[1755416080537,1.4627,4461.4,4461.3,4.5881]
[1755416080747,1.4627,4461.4,4461.3,25.4191]
[1755416081748,1.4627,4461.4,4461.3,24.6203]
[1755416082045,1.4627,4461.4,4461.3,25.4191]
[1755416082553,0.4182,4461.4,4461.3,25.4191]
[1755416083847,0.2444,4461.4,4461.3,25.4191]
[1755416084052,0.8195,4462.1,4462.0,0.5913]
[1755416084349,1.4627,4462.1,4462.0,22.1973]
[1755416089748,1.4627,4462.1,4462.0,21.1477]
[1755416089954,1.4627,4462.1,4462.0,20.817]
[1755416090148,1.68549155,4462.1,4462.0,20.817]
[1755416092855,1.68450009,4462.1,4462.0,20.817]
[1755416093454,1.68450009,4462.1,4462.0,21.4001]
[1755416093651,1.68450009,4462.1,4462.0,21.9383]
[1755416094051,1.68450009,4462.1,4462.0,21.1573]
[1755416095550,1.68450009,4462.1,4462.0,22.1816]
[1755416100252,0.22180009,4462.1,4462.0,22.204]